[Event "Titled Tuesday Blitz May 25 2021"]
[White "Sjugirov, Sanan"]
[Black "Aradhya, Garg"]
[WhiteFideId "4189302"]
[BlackFideId "25006746"]
[WhiteElo "2472"]
[BlackElo "2146"]
[Result "1-0"]
[Round "05"]
[TimeControl "180+1"]
[Date "2021.05.25"]
[WhiteClock "0:00:07"]
[BlackClock "0:00:05"]

1. e4 {[%clk 0:03:00]}  e5 {[%clk 0:02:59]} 2. Nf3 {[%clk 0:03:00]}  Nc6 {[%clk 0:03:00]} 3. Bb5 {[%clk 0:03:00]}  a6 {[%clk 0:03:00]} 4. Ba4 {[%clk 0:02:59]}  Nf6 {[%clk 0:03:00]} 5. d3 {[%clk 0:02:58]}  b5 {[%clk 0:02:59]} 6. Bb3 {[%clk 0:02:58]}  Bc5 {[%clk 0:03:00]} 7. c3 {[%clk 0:02:56]}  d6 {[%clk 0:02:58]} 8. Bg5 {[%clk 0:02:53]}  h6 {[%clk 0:02:57]} 9. Bh4 {[%clk 0:02:53]}  Qe7 {[%clk 0:02:56]} 10. Nbd2 {[%clk 0:02:51]}  Bd7 {[%clk 0:02:51]} 11. Nf1 {[%clk 0:02:46]}  g5 {[%clk 0:02:45]} 12. Bg3 {[%clk 0:02:45]}  Nh5 {[%clk 0:02:21]} 13. Ne3 {[%clk 0:02:17]}  Nxg3 {[%clk 0:02:13]} 14. hxg3 {[%clk 0:02:16]}  Bxe3 {[%clk 0:02:13]} 15. fxe3 {[%clk 0:02:16]}  Kf8 {[%clk 0:02:13]} 16. Qe2 {[%clk 0:02:08]}  Kg7 {[%clk 0:02:12]} 17. O-O-O {[%clk 0:02:07]}  a5 {[%clk 0:01:58]} 18. Rdf1 {[%clk 0:02:05]}  Raf8 {[%clk 0:01:51]} 19. Nd2 {[%clk 0:01:31]}  a4 {[%clk 0:01:49]} 20. Bc2 {[%clk 0:01:30]}  a3 {[%clk 0:01:49]} 21. b3 {[%clk 0:01:29]}  b4 {[%clk 0:01:48]} 22. c4 {[%clk 0:01:29]}  Nd8 {[%clk 0:01:41]} 23. Qh5 {[%clk 0:01:27]}  f6 {[%clk 0:01:35]} 24. Bd1 {[%clk 0:01:25]}  Ne6 {[%clk 0:01:34]} 25. Bg4 {[%clk 0:01:21]}  Be8 {[%clk 0:01:33]} 26. Qh2 {[%clk 0:01:19]}  Nc5 {[%clk 0:01:31]} 27. Kc2 {[%clk 0:01:19]}  c6 {[%clk 0:01:31]} 28. Bf5 {[%clk 0:01:15]}  Bf7 {[%clk 0:01:21]} 29. g4 {[%clk 0:01:10]}  d5 {[%clk 0:01:19]} 30. exd5 {[%clk 0:00:32]}  cxd5 {[%clk 0:01:19]} 31. cxd5 {[%clk 0:00:32]}  Bxd5 {[%clk 0:01:18]} 32. Kd1 {[%clk 0:00:32]}  Rd8 {[%clk 0:01:13]} 33. Ke2 {[%clk 0:00:32]}  Be6 {[%clk 0:01:11]} 34. Qh5 {[%clk 0:00:21]}  Bf7 {[%clk 0:00:58]} 35. Qh3 {[%clk 0:00:19]}  h5 {[%clk 0:00:50]} 36. Qf3 {[%clk 0:00:15]}  h4 {[%clk 0:00:46]} 37. Rc1 {[%clk 0:00:14]}  Bd5 {[%clk 0:00:44]} 38. Qf2 {[%clk 0:00:13]}  Be6 {[%clk 0:00:35]} 39. Bxe6 {[%clk 0:00:11]}  Nxe6 {[%clk 0:00:35]} 40. Ne4 {[%clk 0:00:09]}  Rhf8 {[%clk 0:00:29]} 41. Qf5 {[%clk 0:00:08]}  Qd7 {[%clk 0:00:29]} 42. Rhd1 {[%clk 0:00:08]}  Rc8 {[%clk 0:00:22]} 43. Rc4 {[%clk 0:00:07]}  Qe7 {[%clk 0:00:17]} 44. Rdc1 {[%clk 0:00:05]}  Rcd8 {[%clk 0:00:17]} 45. Rc6 {[%clk 0:00:03]}  Rfe8 {[%clk 0:00:17]} 46. Rf1 {[%clk 0:00:03]}  Qd7 {[%clk 0:00:10]} 47. Qxf6+ {[%clk 0:00:03]}  Kh7 {[%clk 0:00:09]} 48. Qf5+ {[%clk 0:00:02]}  Kh8 {[%clk 0:00:09]} 49. Qf6+ {[%clk 0:00:02]}  Kg8 {[%clk 0:00:09]} 50. Qg6+ {[%clk 0:00:02]}  Kh8 {[%clk 0:00:09]} 51. Qh6+ {[%clk 0:00:03]}  Qh7 {[%clk 0:00:09]} 52. Qxh7+ {[%clk 0:00:03]}  Kxh7 {[%clk 0:00:09]} 53. Nf6+ {[%clk 0:00:04]}  Kg7 {[%clk 0:00:10]} 54. Nxe8+ {[%clk 0:00:04]}  Rxe8 {[%clk 0:00:10]} 55. Rf5 {[%clk 0:00:04]}  h3 {[%clk 0:00:06]} 56. gxh3 {[%clk 0:00:04]}  Nd8 {[%clk 0:00:07]} 57. Rc7+ {[%clk 0:00:04]}  Kg6 {[%clk 0:00:07]} 58. Rd7 {[%clk 0:00:04]}  Rh8 {[%clk 0:00:07]} 59. Rd6+ {[%clk 0:00:04]}  Kg7 {[%clk 0:00:06]} 60. Rxg5+ {[%clk 0:00:04]}  Kf7 {[%clk 0:00:06]} 61. Rh5 {[%clk 0:00:05]}  Rxh5 {[%clk 0:00:04]} 62. gxh5 {[%clk 0:00:05]}  Ke7 {[%clk 0:00:05]} 63. Rg6 {[%clk 0:00:05]}  Nf7 {[%clk 0:00:05]} 64. Kf3 {[%clk 0:00:05]}  e4+ {[%clk 0:00:04]} 65. Kxe4 {[%clk 0:00:05]}  Kf8 {[%clk 0:00:04]} 66. Rf6 {[%clk 0:00:05]}  Kg7 {[%clk 0:00:04]} 67. Rxf7+ {[%clk 0:00:06]}  Kxf7 {[%clk 0:00:05]} 68. Kd4 {[%clk 0:00:07]} 1-0


[Site "https://www.chess.com"]

[Event "Titled Tuesday Blitz May 25 2021"]
[White "Solon, Nathan"]
[Black "Chernomordik, Pavel"]
[WhiteFideId "2017229"]
[BlackFideId "2804530"]
[WhiteElo "2651"]
[BlackElo "2299"]
[Result "0-1"]
[Round "05"]
[TimeControl "180+1"]
[Date "2021.05.25"]
[WhiteClock "0:00:16"]
[BlackClock "0:00:21"]

1. d4 {[%clk 0:03:00]}  g6 {[%clk 0:03:00]} 2. c4 {[%clk 0:02:59]}  Bg7 {[%clk 0:03:01]} 3. g3 {[%clk 0:02:58]}  d6 {[%clk 0:03:00]} 4. Bg2 {[%clk 0:02:58]}  Nf6 {[%clk 0:03:01]} 5. Nc3 {[%clk 0:02:57]}  O-O {[%clk 0:03:00]} 6. Nf3 {[%clk 0:02:58]}  c6 {[%clk 0:03:00]} 7. O-O {[%clk 0:02:55]}  a6 {[%clk 0:03:00]} 8. e4 {[%clk 0:02:47]}  Nfd7 {[%clk 0:02:59]} 9. a4 {[%clk 0:02:43]}  a5 {[%clk 0:02:58]} 10. Be3 {[%clk 0:02:42]}  Na6 {[%clk 0:02:56]} 11. h3 {[%clk 0:02:38]}  Nb4 {[%clk 0:02:51]} 12. Qd2 {[%clk 0:02:38]}  Re8 {[%clk 0:02:46]} 13. Rad1 {[%clk 0:02:37]}  Qc7 {[%clk 0:02:41]} 14. Rfe1 {[%clk 0:02:34]}  e5 {[%clk 0:02:39]} 15. b3 {[%clk 0:02:19]}  b6 {[%clk 0:02:35]} 16. d5 {[%clk 0:02:09]}  c5 {[%clk 0:02:32]} 17. Nh2 {[%clk 0:01:48]}  Nf8 {[%clk 0:02:25]} 18. f4 {[%clk 0:01:39]}  exf4 {[%clk 0:02:13]} 19. Bxf4 {[%clk 0:01:33]}  Ba6 {[%clk 0:02:04]} 20. Nf3 {[%clk 0:01:28]}  Nd7 {[%clk 0:02:01]} 21. Rf1 {[%clk 0:01:14]}  Re7 {[%clk 0:01:49]} 22. Bg5 {[%clk 0:01:08]}  f6 {[%clk 0:01:49]} 23. Bf4 {[%clk 0:01:04]}  Rae8 {[%clk 0:01:45]} 24. h4 {[%clk 0:01:03]}  h5 {[%clk 0:01:37]} 25. Bh3 {[%clk 0:01:03]}  Nf8 {[%clk 0:01:26]} 26. g4 {[%clk 0:01:00]}  Qd7 {[%clk 0:01:10]} 27. Qg2 {[%clk 0:00:58]}  hxg4 {[%clk 0:01:04]} 28. Bxg4 {[%clk 0:00:59]}  f5 {[%clk 0:01:04]} 29. exf5 {[%clk 0:00:59]}  gxf5 {[%clk 0:01:00]} 30. Bh3 {[%clk 0:00:55]}  Kh8 {[%clk 0:00:51]} 31. Nb5 {[%clk 0:00:50]}  Bxb5 {[%clk 0:00:50]} 32. axb5 {[%clk 0:00:51]}  Re2 {[%clk 0:00:49]} 33. Qg5 {[%clk 0:00:49]}  Nh7 {[%clk 0:00:44]} 34. Qxf5 {[%clk 0:00:46]}  Qxf5 {[%clk 0:00:41]} 35. Bxf5 {[%clk 0:00:47]}  Rf8 {[%clk 0:00:34]} 36. Bxh7 {[%clk 0:00:39]}  Rxf4 {[%clk 0:00:33]} 37. Bb1 {[%clk 0:00:29]}  Nc2 {[%clk 0:00:27]} 38. Rd2 {[%clk 0:00:18]}  Rxd2 {[%clk 0:00:22]} 39. Nxd2 {[%clk 0:00:19]}  Bd4+ {[%clk 0:00:22]} 40. Kg2 {[%clk 0:00:18]}  Ne3+ {[%clk 0:00:21]} 41. Kg3 {[%clk 0:00:18]}  Nxf1+ {[%clk 0:00:21]} 42. Kxf4 {[%clk 0:00:16]}  Nxd2 {[%clk 0:00:21]} 0-1


[Site "https://www.chess.com"]

[Event "Titled Tuesday Blitz May 25 2021"]
[White "Sorokin, Aleksey"]
[Black "Leitao, Rafael"]
[WhiteFideId "24176460"]
[BlackFideId "2101246"]
[WhiteElo "2476"]
[BlackElo "2609"]
[Result "1-0"]
[Round "05"]
[TimeControl "180+1"]
[Date "2021.05.25"]
[WhiteClock "0:00:57"]
[BlackClock "0:00:14"]

1. d4 {[%clk 0:02:57]}  Nf6 {[%clk 0:02:58]} 2. c4 {[%clk 0:02:57]}  g6 {[%clk 0:02:58]} 3. Nc3 {[%clk 0:02:57]}  Bg7 {[%clk 0:02:58]} 4. e4 {[%clk 0:02:57]}  d6 {[%clk 0:02:59]} 5. Nf3 {[%clk 0:02:57]}  O-O {[%clk 0:02:58]} 6. Be2 {[%clk 0:02:58]}  e5 {[%clk 0:02:59]} 7. O-O {[%clk 0:02:58]}  exd4 {[%clk 0:02:59]} 8. Nxd4 {[%clk 0:02:57]}  Re8 {[%clk 0:02:59]} 9. f3 {[%clk 0:02:58]}  c6 {[%clk 0:03:00]} 10. Kh1 {[%clk 0:02:58]}  d5 {[%clk 0:03:00]} 11. cxd5 {[%clk 0:02:58]}  cxd5 {[%clk 0:03:00]} 12. Bg5 {[%clk 0:02:57]}  Nc6 {[%clk 0:03:00]} 13. Bb5 {[%clk 0:02:57]}  h6 {[%clk 0:02:58]} 14. Nxc6 {[%clk 0:02:57]}  bxc6 {[%clk 0:02:56]} 15. Bxc6 {[%clk 0:02:58]}  hxg5 {[%clk 0:02:56]} 16. Bxa8 {[%clk 0:02:57]}  d4 {[%clk 0:02:55]} 17. Nd5 {[%clk 0:02:53]}  Ba6 {[%clk 0:02:47]} 18. Nxf6+ {[%clk 0:02:53]}  Qxf6 {[%clk 0:02:31]} 19. Bd5 {[%clk 0:02:53]}  Bxf1 {[%clk 0:02:28]} 20. Qxf1 {[%clk 0:02:54]}  Rc8 {[%clk 0:01:47]} 21. Qd3 {[%clk 0:02:42]}  Qf4 {[%clk 0:01:44]} 22. g3 {[%clk 0:02:37]}  Qe3 {[%clk 0:01:43]} 23. Qxe3 {[%clk 0:02:28]}  dxe3 {[%clk 0:01:43]} 24. Re1 {[%clk 0:02:28]}  Bd4 {[%clk 0:01:34]} 25. Re2 {[%clk 0:02:26]}  Rc1+ {[%clk 0:01:33]} 26. Kg2 {[%clk 0:02:26]}  Rb1 {[%clk 0:01:33]} 27. b3 {[%clk 0:02:22]}  Kg7 {[%clk 0:01:28]} 28. f4 {[%clk 0:02:22]}  g4 {[%clk 0:01:25]} 29. Bc4 {[%clk 0:01:59]}  f5 {[%clk 0:01:14]} 30. exf5 {[%clk 0:01:58]}  gxf5 {[%clk 0:01:14]} 31. Bd3 {[%clk 0:01:58]}  Rd1 {[%clk 0:00:42]} 32. Bxf5 {[%clk 0:01:58]}  Kf6 {[%clk 0:00:42]} 33. Bxg4 {[%clk 0:01:58]}  Bb6 {[%clk 0:00:43]} 34. Kf3 {[%clk 0:01:57]}  Rf1+ {[%clk 0:00:41]} 35. Ke4 {[%clk 0:01:57]}  Rc1 {[%clk 0:00:39]} 36. Bd7 {[%clk 0:01:46]}  Rd1 {[%clk 0:00:39]} 37. Bb5 {[%clk 0:01:43]}  Rd4+ {[%clk 0:00:38]} 38. Kf3 {[%clk 0:01:42]}  Rd1 {[%clk 0:00:38]} 39. g4 {[%clk 0:01:36]}  Rf1+ {[%clk 0:00:38]} 40. Ke4 {[%clk 0:01:34]}  Bc7 {[%clk 0:00:34]} 41. g5+ {[%clk 0:01:16]}  Kg7 {[%clk 0:00:35]} 42. Rc2 {[%clk 0:01:15]}  Rxf4+ {[%clk 0:00:34]} 43. Kxe3 {[%clk 0:01:15]}  Be5 {[%clk 0:00:29]} 44. Rc5 {[%clk 0:01:13]}  Bd6 {[%clk 0:00:18]} 45. Rd5 {[%clk 0:01:12]}  Bb8 {[%clk 0:00:18]} 46. Bd3 {[%clk 0:01:00]}  Rf7 {[%clk 0:00:16]} 47. h4 {[%clk 0:00:58]}  Re7+ {[%clk 0:00:15]} 48. Kf3 {[%clk 0:00:57]}  Rf7+ {[%clk 0:00:15]} 49. Bf5 {[%clk 0:00:57]}  Rc7 {[%clk 0:00:14]} 50. Rd7+ {[%clk 0:00:57]} 1-0


[Site "https://www.chess.com"]

[Event "Titled Tuesday Blitz May 25 2021"]
[White "Terry, Renato"]
[Black "Woodward, Andy"]
[WhiteFideId "3803457"]
[BlackFideId "30953499"]
[WhiteElo "2581"]
[BlackElo "2615"]
[Result "1-0"]
[Round "05"]
[TimeControl "180+1"]
[Date "2021.05.25"]
[WhiteClock "0:00:10"]
[BlackClock "0:00:12"]

1. d4 {[%clk 0:03:00]}  d5 {[%clk 0:02:58]} 2. Bg5 {[%clk 0:02:58]}  Nf6 {[%clk 0:02:57]} 3. Bxf6 {[%clk 0:02:58]}  exf6 {[%clk 0:02:58]} 4. e3 {[%clk 0:02:58]}  c6 {[%clk 0:02:58]} 5. c4 {[%clk 0:02:59]}  dxc4 {[%clk 0:02:55]} 6. Bxc4 {[%clk 0:03:00]}  Bd6 {[%clk 0:02:55]} 7. Nc3 {[%clk 0:02:58]}  O-O {[%clk 0:02:55]} 8. Qc2 {[%clk 0:02:58]}  a6 {[%clk 0:02:53]} 9. Nf3 {[%clk 0:02:56]}  h6 {[%clk 0:02:53]} 10. O-O {[%clk 0:02:55]}  Nd7 {[%clk 0:02:53]} 11. Ne4 {[%clk 0:02:55]}  Be7 {[%clk 0:02:53]} 12. Nh4 {[%clk 0:02:52]}  Nb6 {[%clk 0:02:48]} 13. Ng6 {[%clk 0:02:27]}  Nxc4 {[%clk 0:02:34]} 14. Qxc4 {[%clk 0:02:27]}  Be6 {[%clk 0:02:32]} 15. Nxe7+ {[%clk 0:02:27]}  Qxe7 {[%clk 0:02:33]} 16. Qc5 {[%clk 0:02:26]}  Qc7 {[%clk 0:02:29]} 17. Rfc1 {[%clk 0:02:12]}  Rad8 {[%clk 0:02:25]} 18. Nc3 {[%clk 0:02:10]}  Qb8 {[%clk 0:02:18]} 19. Qb6 {[%clk 0:02:03]}  f5 {[%clk 0:02:07]} 20. Ne2 {[%clk 0:01:56]}  Rd5 {[%clk 0:02:02]} 21. Rc5 {[%clk 0:01:55]}  Rfd8 {[%clk 0:01:59]} 22. Nf4 {[%clk 0:01:39]}  Rxc5 {[%clk 0:01:55]} 23. Qxc5 {[%clk 0:01:40]}  Qd6 {[%clk 0:01:50]} 24. b4 {[%clk 0:01:35]}  g5 {[%clk 0:01:45]} 25. Nd3 {[%clk 0:01:26]}  Qc7 {[%clk 0:01:34]} 26. Qe5 {[%clk 0:01:15]}  Qxe5 {[%clk 0:01:25]} 27. Nxe5 {[%clk 0:01:15]}  a5 {[%clk 0:01:25]} 28. Rb1 {[%clk 0:00:46]}  Ra8 {[%clk 0:01:06]} 29. bxa5 {[%clk 0:00:45]}  Rxa5 {[%clk 0:01:06]} 30. Rxb7 {[%clk 0:00:45]}  Rxa2 {[%clk 0:01:07]} 31. h4 {[%clk 0:00:45]}  Bd5 {[%clk 0:01:01]} 32. Rc7 {[%clk 0:00:38]}  Rc2 {[%clk 0:00:57]} 33. hxg5 {[%clk 0:00:20]}  hxg5 {[%clk 0:00:57]} 34. Nd3 {[%clk 0:00:20]}  Rd2 {[%clk 0:00:25]} 35. Nb4 {[%clk 0:00:17]}  Rd1+ {[%clk 0:00:21]} 36. Kh2 {[%clk 0:00:17]}  Rb1 {[%clk 0:00:19]} 37. Nxd5 {[%clk 0:00:13]}  cxd5 {[%clk 0:00:20]} 38. Rc5 {[%clk 0:00:14]}  Kg7 {[%clk 0:00:20]} 39. Rxd5 {[%clk 0:00:14]}  Kg6 {[%clk 0:00:21]} 40. Kg3 {[%clk 0:00:14]}  f6 {[%clk 0:00:21]} 41. Kf3 {[%clk 0:00:14]}  Rb3 {[%clk 0:00:21]} 42. g3 {[%clk 0:00:13]}  g4+ {[%clk 0:00:19]} 43. Kg2 {[%clk 0:00:13]}  Rb2 {[%clk 0:00:19]} 44. Ra5 {[%clk 0:00:13]}  Rd2 {[%clk 0:00:18]} 45. Kf1 {[%clk 0:00:12]}  Rb2 {[%clk 0:00:15]} 46. Ra1 {[%clk 0:00:12]}  Rd2 {[%clk 0:00:14]} 47. Ke1 {[%clk 0:00:12]}  Rb2 {[%clk 0:00:15]} 48. Rd1 {[%clk 0:00:12]}  Kf7 {[%clk 0:00:15]} 49. Rd2 {[%clk 0:00:13]}  Rb8 {[%clk 0:00:14]} 50. Rc2 {[%clk 0:00:13]}  Ke6 {[%clk 0:00:14]} 51. Ke2 {[%clk 0:00:13]}  Kd6 {[%clk 0:00:13]} 52. Ra2 {[%clk 0:00:13]}  Rb6 {[%clk 0:00:13]} 53. Kd3 {[%clk 0:00:13]}  Rb3+ {[%clk 0:00:12]} 54. Kc4 {[%clk 0:00:13]}  Rb6 {[%clk 0:00:12]} 55. d5 {[%clk 0:00:11]}  Ke5 {[%clk 0:00:10]} 56. Kc5 {[%clk 0:00:10]}  Rb1 {[%clk 0:00:09]} 57. Rd2 {[%clk 0:00:06]}  Rc1+ {[%clk 0:00:09]} 58. Kb5 {[%clk 0:00:06]}  Kd6 {[%clk 0:00:09]} 59. Kb4 {[%clk 0:00:06]}  Rc5 {[%clk 0:00:09]} 60. Rd4 {[%clk 0:00:03]}  Rc2 {[%clk 0:00:04]} 61. Rf4 {[%clk 0:00:03]}  Ke5 {[%clk 0:00:04]} 62. d6 {[%clk 0:00:03]}  Rd2 {[%clk 0:00:04]} 63. Kc5 {[%clk 0:00:03]}  Rd5+ {[%clk 0:00:04]} 64. Kc4 {[%clk 0:00:04]}  Rxd6 {[%clk 0:00:04]} 65. Rd4 {[%clk 0:00:04]}  Rxd4+ {[%clk 0:00:04]} 66. exd4+ {[%clk 0:00:05]}  Kd6 {[%clk 0:00:04]} 67. d5 {[%clk 0:00:05]}  f4 {[%clk 0:00:03]} 68. gxf4 {[%clk 0:00:05]}  Kc7 {[%clk 0:00:03]} 69. Kc5 {[%clk 0:00:05]}  f5 {[%clk 0:00:03]} 70. d6+ {[%clk 0:00:05]}  Kd8 {[%clk 0:00:04]} 71. Kd5 {[%clk 0:00:06]}  Kd7 {[%clk 0:00:04]} 72. Ke5 {[%clk 0:00:06]}  Kc6 {[%clk 0:00:05]} 73. Ke6 {[%clk 0:00:06]}  g3 {[%clk 0:00:05]} 74. fxg3 {[%clk 0:00:06]}  Kc5 {[%clk 0:00:05]} 75. d7 {[%clk 0:00:07]}  Kd4 {[%clk 0:00:06]} 76. d8=Q+ {[%clk 0:00:07]}  Ke4 {[%clk 0:00:06]} 77. Qg5 {[%clk 0:00:08]}  Kf3 {[%clk 0:00:07]} 78. Qxf5 {[%clk 0:00:09]}  Kg2 {[%clk 0:00:08]} 79. Qe5 {[%clk 0:00:09]}  Kh3 {[%clk 0:00:09]} 80. f5 {[%clk 0:00:10]}  Kg2 {[%clk 0:00:09]} 81. f6 {[%clk 0:00:11]}  Kh2 {[%clk 0:00:10]} 82. f7 {[%clk 0:00:12]}  Kh3 {[%clk 0:00:11]} 83. f8=Q {[%clk 0:00:12]}  Kg4 {[%clk 0:00:12]} 84. Qff5# {[%clk 0:00:10]} 1-0


[Site "https://www.chess.com"]

[Event "Titled Tuesday Blitz May 25 2021"]
[White "Titus, Andrew"]
[Black "Borsuk, Konstantin"]
[WhiteFideId "2059770"]
[BlackFideId "14113406"]
[WhiteElo "2044"]
[BlackElo "2363"]
[Result "0-1"]
[Round "05"]
[TimeControl "180+1"]
[Date "2021.05.25"]
[WhiteClock "0:00:47"]
[BlackClock "0:01:32"]

1. e4 {[%clk 0:03:00]}  e6 {[%clk 0:02:40]} 2. d4 {[%clk 0:02:59]}  d5 {[%clk 0:02:41]} 3. Nd2 {[%clk 0:02:58]}  Nf6 {[%clk 0:02:41]} 4. e5 {[%clk 0:02:59]}  Nfd7 {[%clk 0:02:41]} 5. Bd3 {[%clk 0:02:59]}  c5 {[%clk 0:02:42]} 6. c3 {[%clk 0:03:00]}  Nc6 {[%clk 0:02:41]} 7. Ne2 {[%clk 0:03:00]}  b6 {[%clk 0:02:42]} 8. f4 {[%clk 0:02:59]}  cxd4 {[%clk 0:02:42]} 9. cxd4 {[%clk 0:02:59]}  Nb4 {[%clk 0:02:43]} 10. Bb1 {[%clk 0:02:55]}  Ba6 {[%clk 0:02:43]} 11. O-O {[%clk 0:02:54]}  g6 {[%clk 0:02:38]} 12. a3 {[%clk 0:02:53]}  Nd3 {[%clk 0:02:38]} 13. Rf3 {[%clk 0:02:47]}  Nxc1 {[%clk 0:02:37]} 14. Nxc1 {[%clk 0:02:48]}  h5 {[%clk 0:02:33]} 15. Nd3 {[%clk 0:02:45]}  Rc8 {[%clk 0:02:31]} 16. Nf2 {[%clk 0:02:44]}  Qc7 {[%clk 0:02:31]} 17. Rc3 {[%clk 0:02:41]}  Qb7 {[%clk 0:02:30]} 18. Bd3 {[%clk 0:02:36]}  Rxc3 {[%clk 0:02:29]} 19. bxc3 {[%clk 0:02:35]}  Be7 {[%clk 0:02:25]} 20. Qa4 {[%clk 0:02:27]}  Bxd3 {[%clk 0:02:23]} 21. Nxd3 {[%clk 0:02:28]}  b5 {[%clk 0:02:23]} 22. Qb3 {[%clk 0:02:25]}  O-O {[%clk 0:02:20]} 23. a4 {[%clk 0:02:25]}  a6 {[%clk 0:02:21]} 24. axb5 {[%clk 0:02:24]}  axb5 {[%clk 0:02:21]} 25. Qa2 {[%clk 0:02:16]}  Qc6 {[%clk 0:02:19]} 26. Qb3 {[%clk 0:02:11]}  Rc8 {[%clk 0:02:19]} 27. Rc1 {[%clk 0:02:10]}  Nb6 {[%clk 0:02:16]} 28. Nb4 {[%clk 0:02:10]}  Bxb4 {[%clk 0:02:16]} 29. Qxb4 {[%clk 0:02:10]}  Na4 {[%clk 0:02:11]} 30. Nb1 {[%clk 0:02:10]}  Qc4 {[%clk 0:02:08]} 31. Qxc4 {[%clk 0:02:09]}  Rxc4 {[%clk 0:02:08]} 32. Kf2 {[%clk 0:02:08]}  b4 {[%clk 0:02:09]} 33. Ke3 {[%clk 0:02:09]}  bxc3 {[%clk 0:02:06]} 34. Kd3 {[%clk 0:02:08]}  Nb2+ {[%clk 0:02:06]} 35. Ke3 {[%clk 0:02:07]}  c2 {[%clk 0:02:03]} 36. Nd2 {[%clk 0:02:03]}  Rc3+ {[%clk 0:02:03]} 37. Ke2 {[%clk 0:02:04]}  Nd3 {[%clk 0:02:01]} 38. Rxc2 {[%clk 0:02:04]}  Rxc2 {[%clk 0:02:02]} 39. Kxd3 {[%clk 0:02:05]}  Ra2 {[%clk 0:02:01]} 40. g3 {[%clk 0:02:04]}  h4 {[%clk 0:01:58]} 41. Ke2 {[%clk 0:02:02]}  h3 {[%clk 0:01:58]} 42. Ke3 {[%clk 0:02:00]}  g5 {[%clk 0:01:56]} 43. fxg5 {[%clk 0:01:57]}  Kg7 {[%clk 0:01:56]} 44. Nf3 {[%clk 0:01:58]}  Kg6 {[%clk 0:01:55]} 45. Kf4 {[%clk 0:01:58]}  Kh5 {[%clk 0:01:54]} 46. g4+ {[%clk 0:01:57]}  Kg6 {[%clk 0:01:53]} 47. Nh4+ {[%clk 0:01:56]}  Kg7 {[%clk 0:01:53]} 48. Nf3 {[%clk 0:01:57]}  Ra3 {[%clk 0:01:51]} 49. Kg3 {[%clk 0:01:55]}  Kf8 {[%clk 0:01:47]} 50. Kf4 {[%clk 0:01:54]}  Ke7 {[%clk 0:01:48]} 51. Nh4 {[%clk 0:01:52]}  Rd3 {[%clk 0:01:48]} 52. Nf3 {[%clk 0:01:52]}  Kd7 {[%clk 0:01:48]} 53. Kg3 {[%clk 0:01:38]}  Kc6 {[%clk 0:01:47]} 54. Kf4 {[%clk 0:01:39]}  Kb5 {[%clk 0:01:48]} 55. g6 {[%clk 0:01:03]}  fxg6 {[%clk 0:01:46]} 56. Ng5 {[%clk 0:01:04]}  Rxd4+ {[%clk 0:01:45]} 57. Kg3 {[%clk 0:01:03]}  Rd3+ {[%clk 0:01:45]} 58. Kf4 {[%clk 0:01:02]}  Rd2 {[%clk 0:01:40]} 59. Nxe6 {[%clk 0:00:51]}  Rxh2 {[%clk 0:01:39]} 60. Nd4+ {[%clk 0:00:52]}  Kc4 {[%clk 0:01:38]} 61. Nf3 {[%clk 0:00:52]}  Re2 {[%clk 0:01:37]} 62. Kg3 {[%clk 0:00:48]}  h2 {[%clk 0:01:36]} 63. Nxh2 {[%clk 0:00:47]}  Rxe5 {[%clk 0:01:36]} 64. Nf3 {[%clk 0:00:48]}  Re3 {[%clk 0:01:36]} 65. Kf4 {[%clk 0:00:48]}  Rxf3+ {[%clk 0:01:35]} 66. Kxf3 {[%clk 0:00:49]}  d4 {[%clk 0:01:36]} 67. Ke2 {[%clk 0:00:44]}  Kc3 {[%clk 0:01:35]} 68. Kd1 {[%clk 0:00:43]}  Kd3 {[%clk 0:01:34]} 69. g5 {[%clk 0:00:41]}  Ke3 {[%clk 0:01:34]} 70. Ke1 {[%clk 0:00:42]}  d3 {[%clk 0:01:31]} 71. Kd1 {[%clk 0:00:42]}  d2 {[%clk 0:01:31]} 72. Kc2 {[%clk 0:00:42]}  Ke2 {[%clk 0:01:31]} 73. Kc3 {[%clk 0:00:43]}  d1=Q {[%clk 0:01:31]} 74. Kc4 {[%clk 0:00:43]}  Qd3+ {[%clk 0:01:32]} 75. Kc5 {[%clk 0:00:44]}  Ke3 {[%clk 0:01:32]} 76. Kc6 {[%clk 0:00:45]}  Ke4 {[%clk 0:01:32]} 77. Kc7 {[%clk 0:00:46]}  Qd5 {[%clk 0:01:32]} 78. Kc8 {[%clk 0:00:47]} 0-1


[Site "https://www.chess.com"]